bitfinex/quotes_ETHUSD_20230116
["timestamp","ask_amount","ask_price","bid_price","bid_amount"]
[1673834833815,0.07349356,1566.2,1566.1,23.53410904]
[1673834834413,11.4176158,1566.4,1566.2,0.01815511]
[1673834834621,0.0746158,1566.4,1566.3,19.15341]
[1673834834874,0.0746158,1566.4,1566.2,12.32685208]
[1673834835029,0.0746158,1566.4,1566.2,9.40290511]
[1673834835271,0.0746158,1566.4,1566.3,2.11717524]
[1673834835488,0.0746158,1566.4,1566.3,8.50164524]
[1673834837133,0.0746158,1566.4,1566.3,14.88611524]
[1673834837340,0.0746158,1566.4,1566.3,15.8412138]
[1673834838411,0.0746158,1566.4,1566.3,14.88611524]
[1673834839676,0.0746158,1566.4,1566.3,15.84097885]
[1673834839893,0.0746158,1566.4,1566.3,16.79584651]
[1673834841118,0.0746158,1566.4,1566.3,16.79575532]
[1673834841263,0.0746158,1566.4,1566.3,15.84097885]
[1673834841441,0.0746158,1566.4,1566.3,18.26976643]
[1673834841652,0.0746158,1566.4,1566.3,9.45650885]
[1673834843957,0.0746158,1566.4,1566.3,22.75483064]
[1673834844165,0.0746158,1566.4,1566.3,24.83351602]
[1673834844505,0.0746158,1566.4,1566.3,27.94456967]
[1673834844700,0.0746158,1566.4,1566.3,31.79245706]
[1673834844919,0.0746158,1566.4,1566.3,29.36393162]
[1673834845461,0.0746158,1566.4,1566.3,30.79521694]
[1673834845828,0.0746158,1566.4,1566.3,29.36393162]
[1673834846872,0.07462113,1566.5,1566.4,4.43639316]
[1673834847127,0.07462113,1566.5,1566.4,24.50070125]
[1673834847307,0.07462113,1566.5,1566.4,28.51738196]
[1673834847948,0.07462113,1566.5,1566.4,28.51781409]
[1673834848147,0.07954853,1566.6,1566.5,2.28619725]
[1673834848464,0.07954853,1566.6,1566.5,26.58938245]
[1673834848673,0.07954853,1566.6,1566.5,28.06213027]
[1673834848884,0.07954853,1566.6,1566.5,29.49099364]
[1673834849445,2.4614378,1566.8,1566.6,2.97836495]
[1673834849769,0.07462113,1566.8,1566.7,9.38284]
[1673834849917,0.07462113,1566.8,1566.7,10.96137749]
[1673834850600,0.07462113,1566.8,1566.7,17.34421749]
[1673834851631,0.07462113,1566.8,1566.7,18.51175126]
[1673834852807,0.07462113,1566.8,1566.7,17.34421749]
[1673834853020,0.07462113,1566.8,1566.7,18.51066894]
[1673834853194,0.07462113,1566.8,1566.7,18.51060975]
[1673834853546,0.07462113,1566.8,1566.7,18.51058417]
[1673834854610,0.07462113,1566.8,1566.7,17.34421749]
[1673834855249,0.07462113,1566.8,1566.7,10.96137749]
[1673834855421,0.07462113,1566.8,1566.7,9.38284]
[1673834856022,0.4788,1567.0,1566.7,9.38284]
[1673834856285,0.4788,1567.1,1566.7,9.38284]
[1673834856980,0.4788,1567.1,1566.7,3.0]
[1673834857245,0.4788,1567.1,1566.7,9.38278]
[1673834857554,1.65181982,1567.1,1566.7,9.38278]
[1673834858500,0.4788,1567.1,1566.7,9.38278]
[1673834858728,0.4788,1567.1,1566.7,3.0]
[1673834859413,14.83545822,1567.2,1566.7,9.38272]
[1673834860029,14.83545822,1567.2,1566.7,3.0]
[1673834860030,21.21665822,1567.2,1566.7,3.0]
[1673834862906,11.4242,1567.2,1566.7,15.76557]
[1673834863115,11.4242,1567.2,1566.7,17.98236249]
[1673834863646,9.9652,1567.2,1566.7,17.98236249]
[1673834864228,9.4864,1567.2,1566.7,17.98236249]
[1673834864757,9.4864,1567.2,1566.7,19.44136249]
[1673834865172,9.9652,1567.2,1566.7,19.44136249]
[1673834865376,9.9652,1567.2,1566.8,3.44413625]
[1673834865588,0.4788,1567.2,1567.0,1.451]
[1673834865805,8.10259397,1567.3,1567.1,7.82991]
[1673834865806,0.55709397,1567.3,1567.1,7.82991]
[1673834866235,0.07829397,1567.3,1567.1,7.82991]
[1673834866447,0.07829397,1567.3,1567.2,0.782991]
[1673834867697,0.07829397,1567.3,1566.9,10.83273]
[1673834868339,0.07829397,1567.3,1566.9,4.451]
[1673834868569,0.07829397,1567.3,1566.9,3.0]
[1673834869205,0.07829397,1567.3,1566.8,17.14964625]
[1673834869374,6.93756397,1567.3,1566.8,17.14964625]
[1673834869604,9.16208472,1567.3,1566.8,17.14964625]
[1673834870699,9.16208472,1567.3,1566.7,3.0]
[1673834870700,16.49707766,1567.3,1566.7,3.0]
[1673834870870,1.447,1567.2,1566.8,3.0]
[1673834871080,14.20898,1567.2,1566.8,3.0]
[1673834871409,18.32458259,1567.2,1566.7,3.0]
[1673834871639,26.90791856,1567.2,1566.6,0.01936495]
[1673834871797,1.453,1566.9,1566.6,0.01936495]
[1673834872007,6.86133,1566.8,1566.6,0.01936495]
[1673834872530,13.24377,1566.8,1566.6,0.01936495]
[1673834872745,1.324377,1566.7,1566.6,0.01936495]
[1673834873581,6.86133,1566.8,1566.6,0.01936495]
[1673834873824,1.459,1566.7,1566.6,0.01936495]
[1673834874043,14.70358,1566.7,1566.6,0.01936495]
[1673834874323,1.9379,1566.7,1566.6,0.01936495]
[1673834874786,0.4789,1566.7,1566.6,0.01936495]
[1673834875000,0.4789,1566.8,1566.6,0.01936495]
[1673834875586,6.86136,1566.8,1566.6,0.01936495]
[1673834875796,9.47484913,1566.8,1566.6,0.01936495]
[1673834877091,15.85730913,1566.8,1566.6,0.01936495]
[1673834877316,16.81183207,1566.8,1566.6,0.01936495]
[1673834879264,0.4789,1566.8,1566.6,0.01936495]
[1673834880788,14.70294,1566.8,1566.6,0.01936495]
[1673834881014,15.65746294,1566.8,1566.6,0.01936495]
[1673834881364,1.9379,1566.8,1566.6,0.01936495]
[1673834882137,0.4789,1566.8,1566.6,0.01936495]
[1673834883472,2.28118837,1566.9,1566.6,0.01936495]
[1673834883793,2.28118837,1566.9,1566.6,14.06567417]
[1673834883794,0.82218837,1566.9,1566.6,14.06567417]
[1673834884443,0.82218837,1566.9,1566.6,15.51567417]
[1673834885814,0.82218837,1566.9,1566.7,5.71207204]
[1673834886034,0.30733452,1567.1,1566.9,1.5]
[1673834886207,0.30733452,1567.1,1567.0,12.91324]
[1673834886563,0.30733452,1567.1,1567.0,0.15]
[1673834886786,0.30733452,1567.1,1566.9,9.38177]
[1673834886930,0.30733452,1567.1,1566.9,6.38177]
[1673834887668,0.30733452,1567.1,1566.9,12.76379]
[1673834888771,0.30733452,1567.1,1566.8,17.37253]
[1673834888941,0.30733452,1567.1,1566.9,3.0]
[1673834889157,0.30733452,1567.1,1566.9,4.891353]
[1673834889349,0.30733452,1567.1,1566.9,3.0]
[1673834892784,0.30733452,1567.1,1566.7,29.71043]
[1673834892964,0.30733452,1567.1,1566.7,18.8708]
[1673834893130,6.68854452,1567.1,1566.7,9.0396]
[1673834894257,0.30733452,1567.1,1566.7,21.80525]
[1673834894432,0.30733452,1567.1,1566.9,6.38202]
[1673834894989,0.30733452,1567.1,1566.8,8.562865]
[1673834898420,0.30733452,1567.1,1566.8,16.394295]
[1673834898674,0.30733452,1567.1,1566.9,3.0]
[1673834898896,0.30733452,1567.1,1567.0,6.38162]
[1673834899099,0.30733452,1567.1,1567.0,7.957963]
[1673834899525,0.30733452,1567.1,1567.0,9.457963]
[1673834899733,0.30733452,1567.1,1567.0,7.957963]
[1673834900103,0.30733452,1567.1,1567.0,1.576343]
[1673834900678,0.30733452,1567.1,1566.9,3.0]
[1673834900898,0.30733452,1567.1,1566.9,15.76401]
[1673834901255,0.30733452,1567.1,1566.7,24.63253]
[1673834901463,0.30733452,1567.1,1566.8,3.0]
[1673834902258,0.30733452,1567.1,1566.7,24.63253]
[1673834903370,0.30733452,1567.1,1566.6,12.13110417]
[1673834903371,6.68874452,1567.1,1566.6,4.29921417]
[1673834903567,14.02467746,1567.1,1566.6,0.01936495]
[1673834903777,14.50347746,1567.1,1566.6,0.01936495]
[1673834905139,6.38243,1566.8,1566.6,0.01936495]
[1673834905355,7.83543,1566.8,1566.6,0.01936495]
[1673834905945,9.305082,1566.8,1566.6,0.01936495]
[1673834906244,7.83543,1566.8,1566.6,0.01936495]
[1673834907275,7.781221,1566.8,1566.6,0.01936495]
[1673834908669,14.163651,1566.8,1566.6,0.01936495]
[1673834914506,1.459,1566.7,1566.6,0.01936495]
[1673834914726,14.22468,1566.7,1566.6,0.01936495]
[1673834914932,17.20473222,1566.7,1566.6,0.01936495]
[1673834917397,19.70950074,1566.7,1566.6,0.01936495]
[1673834917619,18.91238926,1566.7,1566.6,0.01936495]
[1673834919202,18.91248625,1566.7,1566.6,0.01936495]
[1673834919375,17.68363222,1566.7,1566.6,0.01936495]
[1673834919781,18.91231663,1566.7,1566.6,0.01936495]
[1673834920446,17.68363222,1566.7,1566.6,0.01936495]
[1673834920653,27.81803222,1566.7,1566.6,0.01936495]
[1673834922424,18.45514,1566.7,1566.6,0.01936495]
[1673834922648,16.51724,1566.7,1566.6,0.01936495]
[1673834922860,24.35908,1566.7,1566.6,0.01936495]
[1673834923069,24.83798,1566.7,1566.6,0.01936495]
[1673834923458,24.35908,1566.7,1566.6,0.01936495]
[1673834923677,28.39851239,1566.7,1566.6,0.01936495]
[1673834924356,31.90129917,1566.7,1566.6,0.01936495]
[1673834926766,22.01567239,1566.7,1566.6,0.01936495]
[1673834926986,17.97624,1566.7,1566.6,0.01936495]
[1673834927555,10.1344,1566.7,1566.6,0.79336495]
[1673834928200,12.710961,1566.8,1566.6,0.79336495]
[1673834928733,12.710961,1566.8,1566.6,0.01936495]
[1673834930332,14.169961,1566.8,1566.6,0.01936495]
[1673834930549,14.1826761,1566.7,1566.6,0.01608173]
[1673834932099,16.1145761,1566.7,1566.6,0.01608173]
[1673834932633,15.6356761,1566.7,1566.6,0.01608173]
[1673834936803,6.38284,1566.7,1566.6,0.01608173]
[1673834939962,6.328221,1566.8,1566.6,0.01608173]
[1673834940445,24.54351,1566.9,1566.6,0.01608173]
[1673834940446,9.5514,1566.9,1566.6,0.01608173]
[1673834941113,9.5514,1566.9,1566.6,1.47508173]
[1673834941323,6.38189,1567.0,1566.7,0.14750817]
[1673834943845,7.33641294,1567.0,1566.7,0.14750817]
[1673834944176,6.38189,1567.0,1566.7,0.14750817]
[1673834944365,7.33641294,1567.0,1566.7,0.14750817]
[1673834944741,6.38189,1567.0,1566.7,0.14750817]
[1673834946575,10.94193452,1567.1,1566.7,1.60650817]
[1673834946812,10.46313452,1567.1,1566.8,0.16065082]
[1673834947653,16.84444452,1567.1,1566.8,0.16065082]
[1673834947871,24.18027746,1567.1,1566.6,11.23091722]
[1673834948081,24.18027746,1567.1,1566.6,9.67038173]
[1673834949461,25.62527746,1567.1,1566.6,9.67038173]
[1673834950227,24.67075452,1567.1,1566.6,9.67038173]
[1673834950552,25.62190335,1567.1,1566.6,9.67038173]
[1673834950763,25.62190335,1567.1,1566.6,11.52818509]
[1673834952597,24.66738041,1567.1,1566.6,11.52818509]
[1673834953168,2.68769426,1567.0,1566.6,0.01608173]
[1673834953390,19.62518,1566.9,1566.6,0.01608173]
[1673834953571,1.5,1566.8,1566.6,0.01608173]
[1673834953743,6.38284,1566.7,1566.6,0.01608173]
[1673834955694,16.19958,1566.7,1566.6,0.01608173]
[1673834955851,18.55325429,1566.7,1566.6,0.01608173]
[1673834956794,17.05325429,1566.7,1566.6,0.01608173]
[1673834960278,0.4789,1566.7,1566.6,0.01608173]
[1673834960630,9.9806,1566.8,1566.6,0.01608173]
[1673834961527,9.5017,1566.8,1566.6,0.01608173]
[1673834963425,23.72573,1566.8,1566.6,0.01608173]
[1673834963643,1.70725274,1566.7,1566.6,0.01608173]
[1673834963864,17.48668651,1566.7,1566.6,0.01363936]
[1673834964083,18.28369647,1566.7,1566.6,0.01363936]
[1673834964576,17.48668651,1566.7,1566.6,0.01363936]
[1673834965047,6.86174,1566.7,1566.6,0.01363936]
[1673834965260,6.38284,1566.7,1566.6,0.01363936]
[1673834965417,12.76568,1566.7,1566.6,0.01363936]
[1673834966832,6.38284,1566.7,1566.6,0.01363936]
[1673834968991,6.38284,1566.7,1566.6,0.78763936]
[1673834969196,9.5017,1566.8,1566.6,0.86762302]
[1673834970015,25.25382294,1567.0,1566.6,0.86762302]
[1673834970176,25.75075996,1567.0,1566.6,0.86762302]
[1673834970714,3.16905157,1567.1,1566.6,8.70978302]
[1673834971064,0.78276041,1567.1,1566.7,7.83679]
[1673834971270,0.30396041,1567.1,1566.8,0.783679]
[1673834971485,0.30396041,1567.1,1566.7,4.454]
[1673834971486,6.68522041,1567.1,1566.7,4.454]
[1673834971655,7.63974335,1567.1,1566.7,4.454]
[1673834972082,7.63974335,1567.1,1566.6,18.5989222]
[1673834972902,8.76755116,1567.1,1566.6,18.58528284]
[1673834973107,1.22814573,1567.0,1566.6,9.32478366]
[1673834973373,1.5,1566.9,1566.6,9.2448]
[1673834973585,6.38243,1566.8,1566.6,9.2448]
[1673834973902,12.76486,1566.8,1566.3,14.5871438]
[1673834974060,12.76486,1566.8,1566.4,1.30013741]
[1673834974268,16.22438612,1566.8,1566.4,1.30013741]
[1673834974703,17.17890906,1566.8,1566.4,1.30013741]
[1673834974953,17.17890906,1566.8,1566.3,19.08497315]
[1673834975146,17.65780906,1566.8,1566.3,19.08497315]
[1673834975789,17.65780906,1566.8,1566.4,1.30104987]
[1673834978495,1.76578091,1566.7,1566.4,1.30104987]
[1673834978705,6.38325,1566.6,1566.4,1.30104987]
[1673834979327,6.38325,1566.6,1566.3,18.1323]
[1673834979544,6.38325,1566.6,1566.3,8.9267]
[1673834981331,6.38325,1566.6,1566.3,9.87937315]
[1673834981539,6.38297,1566.7,1566.3,10.21318812]
[1673834981755,12.76605,1566.7,1566.3,10.21318812]
[1673834982109,6.38297,1566.7,1566.3,10.21318812]
[1673834983218,6.38297,1566.7,1566.3,8.9267]
[1673834983834,7.33749294,1566.7,1566.3,8.9267]
[1673834984044,6.38297,1566.7,1566.3,8.9267]
[1673834986372,13.72046294,1566.7,1566.3,8.9267]
[1673834987468,15.15223116,1566.7,1566.3,8.9267]
[1673834987689,17.77003422,1566.7,1566.3,8.9267]
[1673834988608,16.338266,1566.7,1566.3,8.9267]
[1673834988787,7.33749294,1566.7,1566.3,8.9267]
[1673834988999,7.33749294,1566.7,1566.3,9.87937315]
[1673834989240,6.38297,1566.7,1566.4,1.30231657]
[1673834989885,7.33749294,1566.7,1566.3,9.87937315]
[1673834990101,7.33749294,1566.7,1566.3,8.9267]
[1673834990261,7.33749294,1566.7,1566.3,10.86275726]
[1673834990794,7.33749294,1566.7,1566.4,1.30289371]
[1673834991411,0.0034032,1566.4,1566.3,10.86275726]
[1673834991656,0.7414032,1566.4,1566.3,10.22970592]
[1673834991834,0.7414032,1566.4,1566.3,1.30300592]
[1673834992588,0.0034032,1566.4,1566.3,1.30300592]
[1673834993616,0.7414032,1566.4,1566.3,1.30300592]
[1673834994456,0.73879626,1566.4,1566.3,1.30300592]
[1673834994682,0.73879626,1566.4,1566.2,1.0553106]
[1673834994683,0.73879626,1566.4,1566.2,0.10263745]
[1673834997511,0.00079626,1566.4,1566.2,2.35748282]
[1673834997769,0.00079626,1566.4,1566.3,1.30217222]
[1673835004668,0.73879626,1566.4,1566.2,1.83185289]
[1673835004973,1.453,1566.3,1566.2,0.10263745]
[1673835005202,17.43026666,1566.3,1566.2,0.10263745]
[1673835005551,15.93026666,1566.3,1566.2,0.10263745]
[1673835005895,23.41650359,1566.3,1566.2,0.10263745]
[1673835006016,22.46198065,1566.3,1566.2,0.10263745]
[1673835006226,24.21476802,1566.3,1566.2,0.10263745]
[1673835006546,22.78223309,1566.3,1566.2,0.10263745]
[1673835006757,24.24123309,1566.3,1566.2,0.10263745]
[1673835006992,22.21450871,1566.3,1566.2,0.10263745]
[1673835010364,24.4045658,1566.3,1566.2,0.10263745]
[1673835010579,27.03404032,1566.3,1566.2,0.10263745]
[1673835010826,31.37866457,1566.3,1566.2,0.10263745]
[1673835011052,33.28699261,1566.3,1566.2,0.10263745]
[1673835011417,1.5,1566.2,1566.1,0.10188709]
[1673835011629,14.79654256,1566.2,1566.1,0.10188709]
[1673835011967,27.56630256,1566.2,1566.1,0.10188709]
[1673835012712,26.61218861,1566.2,1566.1,0.10188709]
[1673835012923,26.06668241,1566.2,1566.1,0.10188709]
[1673835013308,26.06668332,1566.2,1566.1,0.10188709]
[1673835013520,24.63551239,1566.2,1566.1,0.10188709]
[1673835015535,23.7677771,1566.2,1566.1,0.10188709]
[1673835016742,23.89870604,1566.2,1566.1,0.00088709]
[1673835016950,35.83127033,1566.2,1566.1,0.00088709]
[1673835017174,30.90196534,1566.2,1566.1,0.00088709]
[1673835017383,30.42326408,1566.2,1566.1,0.00088709]
[1673835017529,29.91734821,1566.2,1566.1,0.00088709]
[1673835017742,38.18514821,1566.2,1566.1,0.00088709]
[1673835018373,36.75552143,1566.2,1566.1,0.00088709]
[1673835018579,32.25450604,1566.2,1566.1,0.00088709]
[1673835018845,28.77540604,1566.2,1566.1,0.00088709]
[1673835019212,24.31034678,1566.2,1566.1,0.00088709]
[1673835019886,24.78944678,1566.2,1566.1,0.00088709]
[1673835020215,21.51666,1566.2,1566.1,0.00088709]
[1673835020366,21.03756,1566.2,1566.1,0.00088709]
[1673835021579,19.50885193,1566.3,1566.1,0.00088709]
[1673835021580,9.8636,1566.3,1566.1,0.00088709]
[1673835021946,9.8636,1566.3,1566.1,0.1468758]
[1673835022370,6.38514626,1566.4,1566.1,0.1468758]
[1673835022371,12.76949626,1566.4,1566.1,0.1468758]
[1673835022686,12.76949626,1566.4,1566.1,0.00088709]
[1673835022926,15.22258039,1566.4,1566.1,0.00088709]
[1673835023314,14.26949626,1566.4,1566.1,0.00088709]
[1673835023527,15.70158039,1566.4,1566.1,0.00088709]
[1673835023940,14.74849626,1566.4,1566.1,0.00088709]
[1673835024399,18.92853598,1566.4,1566.1,0.00088709]
[1673835025355,19.88162011,1566.4,1566.1,0.00088709]
[1673835025788,1.5,1566.3,1566.1,0.00088709]
[1673835026160,7.88468,1566.3,1566.1,0.00088709]
[1673835027940,6.38468,1566.3,1566.1,0.00088709]
[1673835028310,13.24849626,1566.4,1566.1,0.00088709]
[1673835028468,12.76949626,1566.4,1566.1,0.00088709]
[1673835028678,14.26949626,1566.4,1566.1,0.00088709]
[1673835028925,12.76949626,1566.4,1566.1,0.00088709]
[1673835029254,14.26949626,1566.4,1566.1,0.00088709]
[1673835030088,6.38514626,1566.4,1566.1,0.00088709]
[1673835030315,0.00079626,1566.4,1566.1,1.44888709]
[1673835030500,0.00079626,1566.4,1566.2,1.59488871]
[1673835033092,0.41916394,1566.3,1566.2,1.59488871]
[1673835034701,0.41916394,1566.3,1566.2,0.91888871]
[1673835035581,0.41916394,1566.3,1566.2,0.86888871]
[1673835040792,0.41916394,1566.3,1566.1,2.58660973]
[1673835041053,0.41916394,1566.3,1566.1,0.00088709]
[1673835049692,13.18828394,1566.3,1566.1,0.00088709]
[1673835050068,13.66738394,1566.3,1566.1,0.00088709]
[1673835050281,15.16738394,1566.3,1566.1,0.00088709]
[1673835050490,3.01673839,1566.2,1566.1,0.00088709]
[1673835050745,9.40161839,1566.2,1566.1,0.00088709]
[1673835051065,15.78649839,1566.2,1566.1,0.00088709]
[1673835053325,20.87233629,1566.2,1566.1,0.00088709]
[1673835054710,28.69530698,1566.2,1566.1,0.00088709]
[1673835054915,29.93224984,1566.2,1566.1,0.00088709]
[1673835055683,28.50262306,1566.2,1566.1,0.00088709]
[1673835056529,29.93465157,1566.2,1566.1,0.00088709]
[1673835057117,24.93465157,1566.2,1566.1,0.00088709]
[1673835057339,23.02632353,1566.2,1566.1,0.00088709]
[1673835058364,26.50262306,1566.2,1566.1,0.00088709]
[1673835058908,30.00262306,1566.2,1566.1,0.00088709]
[1673835059361,0.00111291,1566.0,1565.9,0.10263745]
[1673835059696,24.27391229,1566.0,1565.9,0.10263745]
[1673835059945,21.8610925,1566.0,1565.9,0.10263745]
[1673835060790,20.0462942,1566.0,1565.9,0.10263745]
[1673835061578,21.8611882,1566.0,1565.9,0.10263745]
[1673835061826,21.86119782,1566.0,1565.9,0.10263745]
[1673835062209,23.09835229,1566.0,1565.9,0.10263745]
[1673835062670,21.86119782,1566.0,1565.9,0.10263745]
[1673835062834,20.5254942,1566.0,1565.9,0.10263745]
[1673835063877,22.34002669,1566.0,1565.9,0.10263745]
[1673835064143,23.57668086,1566.0,1565.9,0.10263745]
[1673835064303,26.84946764,1566.0,1565.9,0.10263745]
[1673835064513,30.69363222,1566.0,1565.9,0.10263745]
[1673835064725,35.14663222,1566.0,1565.9,0.10263745]
[1673835065264,37.68972222,1566.0,1565.9,0.00063745]
[1673835065598,25.54764,1565.7,1565.6,0.10470277]
[1673835065818,36.58403619,1565.7,1565.6,0.10470277]
[1673835065988,40.08403619,1565.7,1565.6,0.10470277]
[1673835066198,44.32004078,1565.7,1565.6,0.10470277]
[1673835066559,41.27046329,1565.7,1565.6,0.10470277]
[1673835067577,37.77046329,1565.7,1565.6,0.10470277]
[1673835068782,36.31146329,1565.7,1565.6,0.10470277]
[1673835071037,22.19476651,1565.7,1565.6,0.10470277]
[1673835071265,19.63993,1565.7,1565.6,0.10470277]
[1673835071718,12.77382,1565.7,1565.6,0.10470277]
[1673835071897,6.38691,1565.7,1565.6,0.10470277]
[1673835075630,0.0007251,1565.8,1565.6,0.10470277]
[1673835075794,0.0007251,1565.8,1565.6,0.272807]
[1673835077743,0.0007251,1565.8,1565.6,0.10470277]
[1673835078776,6.3872851,1565.8,1565.6,0.10470277]
[1673835078990,0.0007251,1565.8,1565.6,0.10470277]
[1673835079364,0.0007251,1565.8,1565.7,1.459]
[1673835079633,0.0007251,1565.8,1565.7,2.908]
[1673835079816,0.0007251,1565.8,1565.7,8.4609182]
[1673835080031,0.0007251,1565.8,1565.7,5.5529182]
[1673835080206,0.0007251,1565.8,1565.7,3.0]
[1673835082013,0.0007251,1565.8,1565.6,21.97500277]
[1673835082202,0.0007251,1565.8,1565.6,23.43400277]
[1673835082465,0.0007251,1565.8,1565.6,17.04670277]
[1673835083087,0.00111291,1566.0,1565.8,0.002]
[1673835083301,0.00111291,1566.0,1565.9,20.6083]
[1673835083571,0.00111291,1566.0,1565.9,30.3684]
[1673835083726,0.00111291,1566.0,1565.9,31.01473918]
[1673835084144,0.00111291,1566.0,1565.9,34.01473918]
[1673835086362,0.00111291,1566.0,1565.9,19.1462]
[1673835086579,0.00111291,1566.0,1565.9,22.86687553]
[1673835087232,0.00111291,1566.0,1565.9,19.86687553]
[1673835087551,0.00111291,1566.0,1565.9,16.1462]
[1673835087711,0.00111291,1566.0,1565.9,9.7601]
[1673835088448,0.00111291,1566.0,1565.9,16.1462]
[1673835088916,0.00111291,1566.0,1565.9,22.5323]
[1673835089090,0.00111291,1566.0,1565.9,25.62101053]
[1673835089768,0.00111291,1566.0,1565.9,27.08001053]
[1673835090010,0.41916394,1566.3,1565.9,27.08001053]
[1673835090579,0.41916394,1566.3,1566.0,2.959]
[1673835090796,0.41916394,1566.3,1566.1,6.38528]
[1673835091032,0.41916394,1566.3,1566.2,0.638528]
[1673835091841,0.41916394,1566.3,1566.1,6.38528]
[1673835092200,0.41916394,1566.3,1565.9,27.09241]
[1673835093690,0.41916394,1566.3,1565.9,25.64041]
[1673835093850,10.04702783,1566.3,1565.9,19.2546]
[1673835094057,7.75751566,1566.3,1565.9,19.2546]
[1673835094296,9.95320499,1566.3,1565.9,9.7601]
[1673835094674,16.33768499,1566.3,1565.9,9.7601]
[1673835094884,1.9791,1566.2,1565.9,9.7601]
[1673835095155,6.38528,1566.1,1565.9,9.7601]
[1673835095305,6.38528,1566.1,1565.7,12.0764]
[1673835095521,0.638528,1566.0,1565.7,3.0]
[1673835096464,12.77093,1566.1,1565.7,3.0]
[1673835098151,12.77093,1566.1,1565.6,17.29518277]
[1673835099203,12.77093,1566.1,1565.6,10.90800277]
[1673835100939,6.38528,1566.1,1565.6,17.29526277]
[1673835101132,6.38528,1566.1,1565.7,1.459]
[1673835101346,6.38528,1566.1,1565.7,3.82725228]
[1673835101727,6.38528,1566.1,1565.7,5.32725228]
[1673835102838,0.4791,1566.2,1565.9,1.452]
[1673835103142,27.77793327,1566.3,1565.9,2.952]
[1673835103457,27.77793327,1566.3,1565.9,1.452]
[1673835103458,11.10485327,1566.3,1565.9,1.452]
[1673835103673,0.41916394,1566.3,1565.9,2.235829]
[1673835103890,0.41916394,1566.3,1565.9,10.121809]
[1673835104043,0.41916394,1566.3,1566.0,1.459]
[1673835104403,0.41916394,1566.3,1566.0,7.84468]
[1673835104565,0.41916394,1566.3,1566.0,10.1347389]
[1673835104783,1.37303566,1566.3,1566.0,10.1347389]
[1673835104984,1.37303566,1566.3,1566.0,1.459]
[1673835107766,7.75759566,1566.3,1566.0,1.45611004]
[1673835107976,7.75759566,1566.3,1565.8,16.97568]
[1673835108189,10.68840325,1566.3,1565.8,16.97568]
[1673835108352,9.18840325,1566.3,1565.8,16.97568]
[1673835108563,1.81348053,1566.2,1565.8,14.01154315]
[1673835109189,18.13084297,1566.3,1565.8,14.01154315]
[1673835109760,2.29258812,1566.2,1565.8,10.5893]
[1673835109930,7.81790172,1566.2,1565.8,10.5893]
[1673835110141,7.33880172,1566.2,1565.8,10.5893]
[1673835110672,1.81410794,1566.1,1565.8,10.5893]
[1673835110934,1.81410794,1566.1,1565.8,9.1303]
[1673835111079,6.56718079,1566.0,1565.8,9.1303]
[1673835111451,6.56718079,1566.0,1565.7,1.459]
[1673835111969,7.52105251,1566.0,1565.7,1.459]
[1673835114396,10.48415985,1566.1,1565.7,1.459]
[1673835114549,9.05335226,1566.1,1565.7,1.459]
[1673835114915,10.48415985,1566.1,1565.7,1.459]
[1673835116923,2.66807226,1566.1,1565.7,7.84591]
[1673835117068,0.95387172,1566.1,1565.8,1.459]
[1673835117279,1.81471463,1566.1,1565.8,1.459]
[1673835118242,1.81471463,1566.1,1565.8,15.73175]
[1673835118459,0.95387172,1566.1,1565.8,14.23175]
[1673835119213,7.33920172,1566.1,1565.7,2.58617813]
[1673835119390,1.8149263,1566.0,1565.7,1.459]
[1673835119597,1.8149263,1566.0,1565.7,4.459]
[1673835120103,8.2006363,1566.0,1565.7,4.459]
[1673835120239,7.33958172,1566.0,1565.7,4.459]
[1673835125794,0.95387172,1566.0,1565.7,4.459]
[1673835126025,8.20121914,1566.0,1565.7,4.459]
[1673835126213,7.33963172,1566.0,1565.7,4.459]
[1673835129317,8.77000931,1566.1,1565.8,0.71678623]
[1673835129688,7.33920172,1566.1,1565.8,0.71678623]
[1673835130034,0.23,1566.0,1565.8,0.71678623]
[1673835130631,0.23,1566.0,1565.7,4.459]
[1673835131004,2.04557117,1566.0,1565.6,12.9577247]
[1673835131248,0.74002046,1565.7,1565.6,0.10470277]
[1673835131370,7.35693046,1565.7,1565.6,0.10470277]
[1673835131575,9.27090993,1565.7,1565.6,0.10470277]
[1673835132253,8.60953438,1565.7,1565.6,0.10470277]
[1673835132463,18.237894,1565.7,1565.6,0.10470277]
[1673835134841,16.32396786,1565.7,1565.6,0.10470277]
[1673835135427,17.27783958,1565.7,1565.6,0.10470277]
[1673835135615,11.85057485,1565.7,1565.6,0.10470277]
[1673835135835,9.93705786,1565.7,1565.6,0.10470277]
[1673835136004,9.93705786,1565.7,1565.6,0.10227581]
[1673835136533,7.65566266,1565.7,1565.6,0.10227581]
[1673835137797,0.30075266,1565.7,1565.6,0.10227581]
[1673835138025,0.30075266,1565.7,1565.6,0.87627581]
[1673835138738,0.30075266,1565.7,1565.6,7.26359581]
[1673835139013,0.30075266,1565.7,1565.6,7.88237814]
[1673835139648,0.30075266,1565.7,1565.6,11.81006122]
[1673835140241,0.30075266,1565.7,1565.6,11.19127889]
[1673835140455,0.30075266,1565.7,1565.6,4.80395889]
[1673835141099,0.30075266,1565.7,1565.6,2.95426762]
[1673835142362,0.30075266,1565.7,1565.6,10.29426077]
[1673835143309,0.30075266,1565.7,1565.6,11.79426077]
[1673835143461,0.30075266,1565.7,1565.6,14.79426077]
[1673835143988,0.30075266,1565.7,1565.6,16.8694706]
[1673835144199,0.30075266,1565.7,1565.6,26.42811209]
[1673835144409,0.30075266,1565.7,1565.6,28.33379834]
[1673835144670,0.30075266,1565.7,1565.6,24.99216039]
[1673835144888,0.30075266,1565.7,1565.6,24.81673597]
[1673835145772,0.30075266,1565.7,1565.6,34.25735104]
[1673835146002,0.30075266,1565.7,1565.6,35.38050582]
[1673835147625,0.30075266,1565.7,1565.6,36.80776208]
[1673835147819,0.30075266,1565.7,1565.6,35.38050582]
[1673835150114,0.30075266,1565.7,1565.6,34.25615824]
[1673835150539,0.30075266,1565.7,1565.6,36.80818367]
[1673835150751,0.30075266,1565.7,1565.6,37.72557403]
[1673835151043,0.30075266,1565.7,1565.6,35.38050582]
[1673835152090,0.30075266,1565.7,1565.6,36.80782861]
[1673835152304,0.30075266,1565.7,1565.6,35.38050582]
[1673835152560,0.30075266,1565.7,1565.6,36.80814035]
[1673835152786,0.30075266,1565.7,1565.6,35.38050582]
[1673835154251,0.30075266,1565.7,1565.6,34.73416664]
[1673835154423,0.30075266,1565.7,1565.6,36.16227108]
[1673835154628,0.30075266,1565.7,1565.6,32.80758483]
[1673835154826,0.30075266,1565.7,1565.6,34.71327108]